bitfinex/quotes_BTCUSD_20250616
["timestamp","ask_amount","ask_price","bid_price","bid_amount"]
[1750051496028,0.44763042,106680.0,106670.0,0.57298277]
[1750051496369,0.44763042,106680.0,106670.0,0.58235712]
[1750051496579,0.44763042,106680.0,106670.0,0.57298277]
[1750051497141,0.44763042,106680.0,106670.0,0.56360833]
[1750051498334,0.44763042,106680.0,106670.0,0.57298277]
[1750051499594,0.44763042,106680.0,106670.0,0.56360833]
[1750051499803,0.44763042,106680.0,106670.0,0.57298277]
[1750051500210,0.01182384,106680.0,106670.0,0.58235712]
[1750051500416,0.44763042,106680.0,106670.0,0.57298277]
[1750051500843,0.44763042,106680.0,106670.0,0.58235712]
[1750051501053,0.44763042,106680.0,106670.0,0.57298277]
[1750051502322,0.01182384,106680.0,106670.0,0.58235651]
[1750051502545,0.01182384,106680.0,106670.0,0.57298207]
[1750051502772,0.01004685,106680.0,106670.0,1.11431204]
[1750051502997,0.01004685,106680.0,106670.0,1.01816238]
[1750051508627,0.01004685,106680.0,106670.0,0.5823558]
[1750051511100,0.01004685,106680.0,106670.0,0.87856556]
[1750051512976,0.01004685,106680.0,106670.0,1.31437214]
[1750051515027,0.01004685,106680.0,106670.0,0.87856556]
[1750051516694,0.44585343,106680.0,106670.0,0.87856556]
[1750051517543,0.01004685,106680.0,106670.0,0.87856556]
[1750051523024,0.01004685,106680.0,106670.0,1.31437214]
[1750051523254,0.01004685,106680.0,106670.0,1.42506221]
[1750051523459,0.01004685,106680.0,106670.0,1.32891299]
[1750051523667,0.01004685,106680.0,106670.0,0.89310641]
[1750051523886,0.01004685,106680.0,106670.0,1.32891299]
[1750051525002,0.01004685,106680.0,106670.0,0.89310641]
[1750051525226,0.01004685,106680.0,106670.0,1.32891299]
[1750051527787,0.01004685,106680.0,106670.0,0.89310641]
[1750051528025,0.01004685,106680.0,106670.0,1.32891299]
[1750051528238,0.01004685,106680.0,106670.0,0.89310641]
[1750051528917,0.01004685,106680.0,106670.0,0.59689665]
[1750051530888,0.44585343,106680.0,106670.0,0.59689665]
[1750051531307,0.44585343,106680.0,106670.0,0.58740309]
[1750051531523,0.01004685,106680.0,106670.0,0.58740309]
[1750051531740,0.01004685,106680.0,106670.0,1.02320967]
[1750051532590,0.00804685,106680.0,106670.0,0.58740309]
[1750051532790,0.01004685,106680.0,106670.0,0.58740309]
[1750051533205,0.00035878,106680.0,106670.0,0.58740309]
[1750051534678,0.43585822,106690.0,106680.0,0.00937374]
[1750051534882,0.43585822,106690.0,106680.0,0.14288241]
[1750051535074,0.43585822,106690.0,106680.0,0.14088241]
[1750051535198,0.43585822,106690.0,106680.0,0.13150876]
[1750051535403,0.43585822,106690.0,106680.0,0.12413502]
[1750051535799,0.43885822,106690.0,106680.0,0.13350884]
[1750051536354,0.43885822,106690.0,106680.0,0.12413502]
[1750051536770,0.43877136,106690.0,106680.0,0.27709502]
[1750051536983,0.44054835,106690.0,106680.0,0.12413502]
[1750051537173,0.47234835,106690.0,106680.0,0.31665502]
[1750051542361,0.47238357,106690.0,106680.0,0.31665502]
[1750051544518,0.03657699,106690.0,106680.0,0.31665502]
[1750051544980,0.47238357,106690.0,106680.0,0.32772086]
[1750051545179,0.47238357,106690.0,106680.0,0.31665502]
[1750051548088,0.003,106690.0,106680.0,1.49618416]
[1750051548312,0.003,106690.0,106680.0,1.86430458]
[1750051548534,0.003,106690.0,106680.0,2.0735224]
[1750051548774,4e-05,106710.0,106700.0,0.64621368]
[1750051548999,4e-05,106710.0,106700.0,1.0497806]
[1750051549228,4e-05,106710.0,106700.0,0.55903917]
[1750051549440,4e-05,106710.0,106700.0,1.70537087]
[1750051549658,4e-05,106710.0,106700.0,1.80152009]
[1750051550092,4e-05,106710.0,106700.0,1.82977093]
[1750051550952,4e-05,106710.0,106700.0,1.78077206]
[1750051551664,0.002,106730.0,106720.0,0.02810988]
[1750051551876,0.002,106730.0,106720.0,0.49895793]
[1750051552084,0.002,106730.0,106720.0,0.89933819]
[1750051552314,0.002,106730.0,106720.0,0.91387904]
[1750051552534,0.01797143,106760.0,106740.0,0.22463202]
[1750051552749,0.38680771,106750.0,106740.0,0.03726173]
[1750051552963,0.00917902,106760.0,106740.0,0.49571219]
[1750051553174,0.38680771,106750.0,106740.0,0.45813832]
[1750051553382,0.39559977,106750.0,106740.0,0.35764043]
[1750051553620,0.39559977,106750.0,106740.0,0.28023596]
[1750051554276,0.39559972,106750.0,106740.0,0.28023596]
[1750051554496,0.39559951,106750.0,106740.0,0.28023596]
[1750051554717,0.38680771,106750.0,106740.0,0.28023596]
[1750051554936,0.39559951,106750.0,106740.0,0.28023596]
[1750051555394,0.39559946,106750.0,106740.0,0.28023596]
[1750051555836,0.38680771,106750.0,106740.0,0.29897289]
[1750051556047,0.38680771,106750.0,106740.0,0.49571245]
[1750051556260,0.38680771,106750.0,106740.0,0.48634416]
[1750051556475,0.38680771,106750.0,106740.0,0.47697569]
[1750051556688,0.38680771,106750.0,106740.0,0.28960451]
[1750051556909,0.38680771,106750.0,106740.0,0.28023596]
[1750051557132,0.00961711,106760.0,106750.0,0.02789326]
[1750051557344,0.73642482,106760.0,106750.0,0.12413502]
[1750051557556,0.7355991,106760.0,106750.0,0.12413502]
[1750051558012,1.12240682,106760.0,106750.0,0.12413502]
[1750051558441,0.73559911,106760.0,106750.0,0.12413502]
[1750051558653,0.73559909,106760.0,106750.0,0.12413502]
[1750051559149,0.72680771,106760.0,106750.0,0.12413502]
[1750051559612,0.73559902,106760.0,106750.0,0.12413502]
[1750051560269,0.72680771,106760.0,106750.0,0.12413502]
[1750051562890,0.34,106760.0,106750.0,0.12413502]
[1750051563123,0.72680771,106760.0,106750.0,0.12413502]
[1750051563548,0.38680771,106760.0,106750.0,0.12413502]
[1750051563981,0.00933125,106770.0,106750.0,0.12413502]
[1750051564266,0.00933125,106770.0,106760.0,0.32752033]
[1750051564498,0.0239,106780.0,106770.0,0.02667407]
[1750051564739,0.0083,106780.0,106770.0,0.12291583]
[1750051564964,0.10817107,106800.0,106780.0,0.05857407]
[1750051565413,0.11735026,106800.0,106780.0,0.05857407]
[1750051565645,0.11735026,106800.0,106790.0,0.09624176]
[1750051565910,0.11735026,106800.0,106790.0,0.17144033]
[1750051566130,0.08933919,106800.0,106790.0,0.1981144]
[1750051566372,0.08933919,106800.0,106790.0,0.24030007]
[1750051566865,0.08933919,106800.0,106790.0,0.48767497]
[1750051567108,0.08016,106800.0,106790.0,1.14460268]
[1750051567322,0.08016,106800.0,106790.0,0.92111497]
[1750051567577,0.01602975,106810.0,106790.0,1.62124861]
[1750051567792,0.00094319,106820.0,106810.0,0.32948761]
[1750051568015,0.00094319,106820.0,106810.0,0.53192296]
[1750051568238,0.00094319,106820.0,106810.0,0.74112296]
[1750051568462,0.00094319,106820.0,106810.0,0.69112296]
[1750051568915,0.00094319,106820.0,106810.0,0.74112296]
[1750051569137,0.00094319,106820.0,106810.0,0.69112296]
[1750051569891,0.00094319,106820.0,106810.0,0.34761238]
[1750051570130,0.00094319,106820.0,106810.0,0.55833238]
[1750051570349,0.00094319,106820.0,106810.0,0.57483238]
[1750051570571,0.00094319,106820.0,106810.0,0.58937323]
[1750051570815,0.00094319,106820.0,106810.0,0.57287323]
[1750051571057,0.00094319,106820.0,106810.0,0.66902245]
[1750051571294,0.00094319,106820.0,106810.0,0.57287323]
[1750051571802,0.00094319,106820.0,106810.0,0.36215323]
[1750051572057,0.00094319,106820.0,106810.0,0.56419323]
[1750051572520,0.00094319,106820.0,106810.0,0.57959323]
[1750051572756,0.00094319,106820.0,106810.0,0.67574245]
[1750051572967,0.00094319,106820.0,106810.0,0.68438245]
[1750051573185,0.00094319,106820.0,106810.0,0.98318245]
[1750051573661,0.00094319,106820.0,106810.0,0.88703323]
[1750051573927,0.00094319,106820.0,106810.0,0.69195323]
[1750051574142,0.00094319,106820.0,106810.0,0.88951323]
[1750051574873,0.00094319,106820.0,106810.0,0.55971323]
[1750051575090,0.3877509,106820.0,106810.0,0.09624176]
[1750051575318,0.00094319,106820.0,106810.0,0.09624176]
[1750051575540,0.3877509,106820.0,106810.0,0.32323583]
[1750051575772,0.3877509,106820.0,106810.0,0.51048421]
[1750051576019,0.00094319,106820.0,106810.0,0.32323583]
[1750051576243,0.3877509,106820.0,106810.0,0.32411583]
[1750051576467,0.00094319,106820.0,106810.0,0.12291583]
[1750051576694,0.3877509,106820.0,106810.0,0.32459583]
[1750051576927,0.4030509,106820.0,106810.0,0.12291583]
[1750051577162,0.4189509,106820.0,106810.0,0.12291583]
[1750051577387,0.4189509,106820.0,106810.0,0.32455583]
[1750051577610,0.41715159,106820.0,106810.0,0.32455583]
[1750051577838,0.41715159,106820.0,106810.0,0.09624176]
[1750051578052,0.41715159,106820.0,106810.0,0.32459583]
[1750051578320,0.41715159,106820.0,106810.0,0.32451583]
[1750051578539,0.03034388,106820.0,106810.0,0.12291583]
[1750051578756,0.03034388,106820.0,106810.0,0.32447583]
[1750051578977,0.03034388,106820.0,106810.0,0.12291583]
[1750051579198,0.41715159,106820.0,106810.0,0.12291583]
[1750051579421,0.41715159,106820.0,106810.0,0.32419583]
[1750051579661,0.03034388,106820.0,106810.0,0.32419583]
[1750051579894,0.03034388,106820.0,106810.0,0.32415583]
[1750051580146,0.41715159,106820.0,106810.0,0.32415583]
[1750051580902,0.41715159,106820.0,106810.0,0.12291583]
[1750051581125,0.0312,106810.0,106800.0,0.10187264]
[1750051581358,0.75800771,106810.0,106800.0,0.32387583]
[1750051581577,0.75760771,106810.0,106800.0,0.20088]
[1750051582048,0.72680771,106810.0,106800.0,0.20068]
[1750051582316,0.72680771,106810.0,106790.0,0.02681526]
[1750051582534,0.02794863,106830.0,106790.0,0.12305702]
[1750051582535,0.38680771,106800.0,106790.0,0.12305702]
[1750051582757,0.0318,106800.0,106790.0,0.12305702]
[1750051582980,0.41860771,106800.0,106790.0,0.12305702]
[1750051583193,0.41860771,106800.0,106790.0,0.32369702]
[1750051584049,0.41860771,106800.0,106790.0,0.32361702]
[1750051584264,0.41960771,106800.0,106790.0,0.32361702]
[1750051585188,0.04148656,106800.0,106790.0,0.32361702]
[1750051585444,0.04148656,106800.0,106790.0,0.09638295]
[1750051585445,0.76060771,106800.0,106790.0,0.09638295]
[1750051585672,1.15610271,106800.0,106790.0,0.00014119]
[1750051585873,1.15610271,106800.0,106790.0,0.20010119]
[1750051586110,0.769295,106800.0,106790.0,0.20010119]
[1750051586323,0.76060771,106800.0,106790.0,0.20010119]
[1750051586549,0.76829518,106800.0,106790.0,0.20010119]
[1750051586780,0.76829507,106800.0,106790.0,0.20010119]
[1750051587025,0.38448736,106800.0,106790.0,0.19978119]
[1750051587257,0.74580802,106800.0,106790.0,0.19978119]
[1750051587503,0.74780801,106800.0,106790.0,0.19978119]
[1750051587735,0.77013141,106800.0,106790.0,0.19978119]
[1750051587978,0.39712329,106800.0,106790.0,0.22994657]
[1750051588213,0.38348726,106800.0,106790.0,0.19978119]
[1750051588452,0.73912066,106800.0,106790.0,0.19978119]
[1750051588657,0.77013116,106800.0,106790.0,0.19978119]
[1750051588874,0.76144389,106800.0,106790.0,0.19978119]
[1750051589088,0.408694,106800.0,106790.0,0.19978119]
[1750051589302,0.38548736,106800.0,106790.0,0.19978119]
[1750051589514,0.3768,106800.0,106790.0,0.29602295]
[1750051589729,0.36948722,106800.0,106790.0,0.29602295]
[1750051590024,0.3608,106800.0,106790.0,0.29602295]
[1750051590243,0.35372213,106800.0,106790.0,0.50998047]
[1750051590468,0.01372158,106800.0,106790.0,0.53807254]
[1750051590686,0.005,106800.0,106790.0,0.99075034]
[1750051590919,0.005,106800.0,106790.0,0.94282968]
[1750051591135,0.01372084,106800.0,106790.0,0.53807254]
[1750051591379,0.0137208,106800.0,106790.0,0.32269702]
[1750051591594,0.0137208,106800.0,106790.0,0.52870836]
[1750051591825,0.01372097,106800.0,106790.0,0.32269702]
[1750051592057,0.01372088,106800.0,106790.0,0.32269702]
[1750051592269,0.005,106800.0,106790.0,0.33206119]
[1750051592454,0.01372101,106800.0,106790.0,0.33206119]
[1750051592706,0.005,106800.0,106790.0,0.33206119]
[1750051592934,0.01372096,106800.0,106790.0,0.5925139]
[1750051593156,0.01372095,106800.0,106790.0,0.58315]
[1750051593364,0.01372095,106800.0,106790.0,0.59251408]
[1750051593585,0.0137209,106800.0,106790.0,0.39586655]
[1750051593819,0.0137209,106800.0,106790.0,0.34142527]
[1750051594054,0.005,106800.0,106790.0,0.35078926]
[1750051594292,0.005,106800.0,106790.0,0.52870872]
[1750051594512,0.01372091,106800.0,106790.0,0.56403609]
[1750051594733,0.01372061,106800.0,106790.0,0.64762612]
[1750051594945,0.01372061,106800.0,106790.0,0.63382612]
[1750051595173,0.01372061,106800.0,106790.0,0.33843254]
[1750051595393,0.01372065,106800.0,106790.0,0.55071627]
[1750051595603,0.01372065,106800.0,106790.0,0.56007991]
[1750051595824,0.01372071,106800.0,106790.0,0.55071627]
[1750051596044,0.01372071,106800.0,106790.0,0.54155271]
[1750051596272,0.01372097,106800.0,106790.0,0.63167424]
[1750051596501,0.005,106800.0,106790.0,0.65040179]
[1750051596712,0.01372081,106800.0,106790.0,0.65040126]
[1750051596926,0.005,106800.0,106790.0,0.550916]
[1750051597146,0.01372074,106800.0,106790.0,0.55091626]
[1750051597355,0.43125986,106820.0,106790.0,0.55091626]
[1750051597610,0.00972074,106800.0,106790.0,0.44531068]
[1750051597831,0.00972074,106800.0,106790.0,0.56027999]
[1750051598057,0.01072074,106800.0,106790.0,0.55091626]
[1750051598505,0.01073858,106800.0,106790.0,0.56027999]
[1750051598718,0.01073858,106800.0,106790.0,0.55091626]
[1750051598939,0.01073859,106800.0,106790.0,0.32617702]
[1750051599169,0.00873859,106800.0,106790.0,0.53218854]
[1750051599384,0.42192866,106820.0,106800.0,0.02667407]
[1750051599603,0.76990903,106820.0,106810.0,0.09624176]
[1750051599814,0.79598769,106820.0,106810.0,0.09624176]
[1750051600029,0.79298761,106820.0,106810.0,0.09624176]
[1750051600242,0.43066699,106820.0,106810.0,0.09624176]
[1750051600466,0.43066706,106820.0,106810.0,0.09424176]
[1750051600905,0.43066707,106820.0,106810.0,0.09424176]
[1750051601154,0.43566707,106820.0,106810.0,0.09424176]
[1750051601421,0.43566707,106820.0,106810.0,0.30224176]
[1750051601639,0.43566704,106820.0,106810.0,0.30224176]
[1750051601851,0.43566697,106820.0,106810.0,0.30224176]
[1750051602056,0.43566698,106820.0,106810.0,0.30224176]
[1750051602270,0.42892866,106820.0,106810.0,0.30224176]
[1750051603144,0.43766722,106820.0,106810.0,0.30224176]
[1750051603357,0.79998788,106820.0,106810.0,0.30224176]
[1750051603571,0.45521845,106820.0,106810.0,0.33513334]
[1750051603783,0.43891845,106820.0,106810.0,0.30224176]
[1750051604229,0.42361845,106820.0,106810.0,0.30224176]
[1750051604443,0.45511902,106820.0,106810.0,0.30224176]
[1750051604660,0.81743972,106820.0,106810.0,0.09424176]
[1750051604874,0.83658514,106820.0,106810.0,0.30396176]
[1750051605082,0.8278093,106820.0,106810.0,0.09424176]
[1750051605352,0.48304126,106820.0,106810.0,0.30396176]
[1750051605562,0.84536206,106820.0,106810.0,0.09424176]
[1750051605774,0.84536227,106820.0,106810.0,0.30400176]
[1750051605994,0.84536216,106820.0,106810.0,0.30400176]
[1750051606424,0.8174784,106820.0,106810.0,0.09424176]
[1750051606644,0.84536213,106820.0,106810.0,0.30400176]
[1750051606888,0.48304148,106820.0,106810.0,0.30400176]
[1750051607115,0.48304148,106820.0,106810.0,0.09424176]
[1750051607116,0.84536215,106820.0,106810.0,0.09424176]
[1750051607331,0.79992568,106820.0,106810.0,0.30360176]
[1750051607780,0.45515774,106820.0,106810.0,0.30360176]
[1750051607996,0.45515769,106820.0,106810.0,0.30360176]
[1750051608208,0.437605,106820.0,106810.0,0.30360176]
[1750051608418,0.43760499,106820.0,106810.0,0.30360176]
[1750051608636,0.45515766,106820.0,106810.0,0.30360176]
[1750051609108,0.43760499,106820.0,106810.0,0.30360176]
[1750051609330,0.44638128,106820.0,106810.0,0.30360176]
[1750051609545,0.43760497,106820.0,106810.0,0.30360176]
[1750051609770,0.42882866,106820.0,106810.0,0.30360176]
[1750051609991,0.44638131,106820.0,106810.0,0.30360176]
[1750051610196,0.44638136,106820.0,106810.0,0.30360176]
[1750051610443,0.45515772,106820.0,106810.0,0.30360176]
[1750051610661,0.81747838,106820.0,106810.0,0.30360176]
[1750051610881,0.437605,106820.0,106810.0,0.30360176]
[1750051611106,0.42882866,106820.0,106810.0,0.30360176]
[1750051611306,0.4376049,106820.0,106810.0,0.30360176]
[1750051611519,0.42716879,106820.0,106810.0,0.30360176]
[1750051611750,0.40961653,106820.0,106810.0,0.30360176]
[1750051611968,0.40482894,106820.0,106810.0,0.30360176]
[1750051612185,0.40482891,106820.0,106810.0,0.30360176]
[1750051612458,0.3960526,106820.0,106810.0,0.30360176]
[1750051612665,0.4048289,106820.0,106810.0,0.30360176]
[1750051612884,0.78714744,106820.0,106810.0,0.30360176]
[1750051613129,0.81347634,106820.0,106810.0,0.30360176]
[1750051613342,0.81347625,106820.0,106810.0,0.30360176]
[1750051613767,0.78714744,106820.0,106810.0,0.30360176]
[1750051613982,0.79592371,106820.0,106810.0,0.30360176]
[1750051614201,0.37811656,106820.0,106810.0,0.30360176]
[1750051614418,0.35577579,106820.0,106810.0,0.34657583]
[1750051614629,0.35577569,106820.0,106810.0,0.33027583]
[1750051614855,0.35578531,106820.0,106810.0,0.33027583]
[1750051615075,0.35578531,106820.0,106810.0,0.09624176]
[1750051615076,0.38748531,106820.0,106810.0,0.09624176]
[1750051615320,0.76500715,106820.0,106810.0,0.09624176]
[1750051615582,0.8137054,106820.0,106810.0,0.30568176]
[1750051615804,0.81370531,106820.0,106810.0,0.30568176]
[1750051616022,0.81370464,106820.0,106810.0,0.30568176]
[1750051616246,0.40104029,106820.0,106810.0,0.30540176]
[1750051616466,0.76500715,106820.0,106810.0,0.30540176]
[1750051616698,0.79800488,106820.0,106810.0,0.30540176]
[1750051617137,0.78043325,106820.0,106810.0,0.30540176]
[1750051617356,0.79800487,106820.0,106810.0,0.30516176]
[1750051617561,0.77164744,106820.0,106810.0,0.30516176]
[1750051617745,0.75809296,106820.0,106810.0,0.30516176]
[1750051617952,0.77566462,106820.0,106810.0,0.30516176]
[1750051618153,0.7668788,106820.0,106810.0,0.30516176]
[1750051618389,0.76687881,106820.0,106810.0,0.30516176]
[1750051618515,0.78935006,106820.0,106810.0,0.30516176]
[1750051618919,0.39425708,106820.0,106810.0,0.33834534]
[1750051619126,0.3870427,106820.0,106810.0,0.33834534]
[1750051619345,0.78213548,106820.0,106810.0,0.30516176]
[1750051619555,0.76456409,106820.0,106810.0,0.30516176]
[1750051619773,0.39582838,106820.0,106810.0,0.30516176]
[1750051620129,0.73330715,106820.0,106810.0,0.30516176]
[1750051620873,0.369492,106820.0,106810.0,0.30516176]
[1750051621102,0.369492,106820.0,106810.0,0.37253927]
[1750051621103,0.347,106820.0,106810.0,0.37253927]
[1750051621319,0.007,106820.0,106810.0,0.37253927]
[1750051621538,0.007,106820.0,106810.0,0.34833583]
[1750051621760,0.007,106820.0,106810.0,0.95701584]
[1750051621988,0.005,106820.0,106810.0,0.58007075]
[1750051622216,0.005,106820.0,106810.0,0.58943273]
[1750051622487,0.00942271,106830.0,106820.0,0.02467407]
[1750051622702,0.00942271,106830.0,106820.0,0.13658663]
[1750051622917,0.75758481,106840.0,106820.0,0.13358663]
[1750051623137,0.38630715,106830.0,106820.0,0.02084487]
[1750051623363,0.00926966,106830.0,106820.0,0.32448663]
[1750051623580,0.38630715,106830.0,106820.0,0.32448663]
[1750051623795,0.38830715,106830.0,106820.0,0.32448663]
[1750051624212,0.002,106830.0,106820.0,0.32448663]
[1750051624441,0.38830715,106830.0,106820.0,0.32448663]
[1750051624652,0.002,106830.0,106820.0,0.32448663]
[1750051625069,0.005,106830.0,106820.0,0.32448663]
[1750051625716,0.003,106830.0,106820.0,0.32448663]
[1750051625927,0.003,106830.0,106820.0,0.42248392]
[1750051626133,0.003,106830.0,106820.0,0.5627402]
[1750051626357,0.003,106830.0,106820.0,0.56274029]
[1750051626565,0.003,106830.0,106820.0,0.58146275]
[1750051626773,0.45331861,106850.0,106820.0,0.57210156]
[1750051626977,0.40701151,106850.0,106840.0,0.02084487]
[1750051627186,0.40701118,106850.0,106840.0,0.32756663]
[1750051627388,0.39822676,106850.0,106840.0,0.32756663]
[1750051627598,0.76896743,106850.0,106840.0,0.32756663]
[1750051628017,0.4070112,106850.0,106840.0,0.32756663]
[1750051628308,0.40701218,106850.0,106840.0,0.32474113]
[1750051628505,0.36562676,106850.0,106840.0,0.32474113]
[1750051628708,0.36962676,106850.0,106840.0,0.30719041]
[1750051629052,0.36962676,106850.0,106840.0,0.32474113]
[1750051629871,0.731583,106850.0,106840.0,0.32324892]
[1750051630279,0.36962676,106850.0,106840.0,0.32324892]
[1750051630480,0.731583,106850.0,106840.0,0.32352892]
[1750051631230,0.36962676,106850.0,106840.0,0.32352892]
[1750051631405,0.731583,106850.0,106840.0,0.32352892]
[1750051631609,0.763883,106850.0,106840.0,0.32300892]
[1750051631828,0.731583,106850.0,106840.0,0.32300892]
[1750051632065,0.36962676,106850.0,106840.0,0.32300892]
[1750051632278,0.731583,106850.0,106840.0,0.32300892]
[1750051632431,0.36962676,106850.0,106840.0,0.32300892]
[1750051633264,0.731583,106850.0,106840.0,0.32300892]
[1750051633601,0.762083,106850.0,106840.0,0.32296892]
[1750051634553,0.40012676,106850.0,106840.0,0.32296892]
[1750051634765,0.762083,106850.0,106840.0,0.11276892]
[1750051635002,0.762083,106850.0,106840.0,0.3051382]
[1750051636194,0.762083,106850.0,106840.0,0.0952182]
[1750051636427,0.762083,106850.0,106840.0,0.3044982]
[1750051636657,0.40012676,106850.0,106840.0,0.3044982]
[1750051636881,0.762083,106850.0,106840.0,0.3044982]
[1750051637123,0.762083,106850.0,106840.0,0.0952182]
[1750051637363,0.78448487,106850.0,106840.0,0.3044982]
[1750051637591,0.42252863,106850.0,106840.0,0.3044982]
[1750051637837,0.36962676,106850.0,106840.0,0.3044982]
[1750051638075,0.36962676,106850.0,106840.0,0.33704892]
[1750051638298,0.36962676,106850.0,106840.0,0.35244892]
[1750051639602,0.36962676,106850.0,106840.0,0.3348982]
[1750051639822,0.36962676,106850.0,106840.0,0.35244892]
[1750051640233,0.36962676,106850.0,106840.0,0.3348982]
[1750051640654,0.36962676,106850.0,106840.0,0.35244892]
[1750051640847,0.36962676,106850.0,106840.0,0.3348982]
[1750051641096,0.36962676,106850.0,106840.0,0.35244892]
[1750051642910,0.3601962,106850.0,106840.0,0.35244892]
[1750051643119,0.3601962,106850.0,106840.0,0.42764749]
[1750051643335,0.0201962,106850.0,106840.0,0.42764749]
[1750051643615,0.0201962,106850.0,106840.0,0.35244892]
[1750051644284,0.0201962,106850.0,106840.0,0.30944892]
[1750051644941,0.0201962,106850.0,106840.0,0.06976892]
[1750051645165,0.0201962,106850.0,106840.0,0.28100892]
[1750051646080,0.39167753,106850.0,106840.0,0.28016892]
[1750051646787,0.41579165,106850.0,106840.0,0.28016892]
[1750051647262,0.02972129,106850.0,106840.0,0.28016892]
[1750051647501,0.41579165,106850.0,106840.0,0.06976892]
[1750051647717,0.41579165,106850.0,106840.0,0.27952892]
[1750051649013,0.02972129,106850.0,106840.0,0.06976892]
[1750051649239,0.41579165,106850.0,106840.0,0.27948892]
[1750051649461,0.02972129,106850.0,106840.0,0.27948892]
[1750051649679,0.41579165,106850.0,106840.0,0.27948892]
[1750051650331,0.44859165,106850.0,106840.0,0.27856892]
[1750051650540,0.78859165,106850.0,106840.0,0.27836892]
[1750051650741,0.81104533,106850.0,106840.0,0.27836892]
[1750051651228,0.81104533,106850.0,106840.0,0.06976892]
[1750051651463,0.81104533,106850.0,106840.0,0.27836892]
[1750051652090,0.75579165,106850.0,106840.0,0.27836892]
[1750051652302,0.75579165,106850.0,106840.0,0.2601382]
[1750051652512,0.75579165,106850.0,106840.0,0.27768892]
[1750051652920,0.36972129,106850.0,106840.0,0.27768892]
[1750051653127,0.75579165,106850.0,106840.0,0.27768892]
[1750051653335,0.36972129,106850.0,106840.0,0.27768892]
[1750051653553,0.75579165,106850.0,106840.0,0.27768892]
[1750051654832,0.75579165,106850.0,106840.0,0.27700892]
[1750051655039,0.79415321,106850.0,106840.0,0.27700892]
[1750051656627,0.81005321,106850.0,106840.0,0.27700892]
[1750051657392,0.81005321,106850.0,106840.0,0.2594582]
[1750051657616,0.81005321,106850.0,106840.0,0.27700892]
[1750051657833,0.42398285,106850.0,106840.0,0.06976892]
[1750051658046,0.78759165,106850.0,106840.0,0.27596892]
[1750051658257,0.81005321,106850.0,106840.0,0.27596892]
[1750051659147,0.77825321,106850.0,106840.0,0.27596892]
[1750051660491,0.39218285,106850.0,106840.0,0.2582182]
[1750051660728,0.36972129,106850.0,106840.0,0.27576892]
[1750051660947,0.75579165,106850.0,106840.0,0.27576892]
[1750051661164,0.77825321,106850.0,106840.0,0.27576892]
[1750051661378,0.80985321,106850.0,106840.0,0.27576892]
[1750051661660,0.80985321,106850.0,106840.0,0.27516892]
[1750051663100,0.42378285,106850.0,106840.0,0.27516892]
[1750051663301,0.78739165,106850.0,106840.0,0.27516892]
[1750051663512,0.80985321,106850.0,106840.0,0.27516892]
[1750051663932,0.80985321,106850.0,106840.0,0.27412892]
[1750051664573,0.80985321,106850.0,106840.0,0.27388892]
[1750051665408,0.42378285,106850.0,106840.0,0.27388892]
[1750051665624,0.78739165,106850.0,106840.0,0.27388892]
[1750051665841,0.79345321,106850.0,106840.0,0.27388892]
[1750051666654,0.80995321,106850.0,106840.0,0.27388892]
[1750051666856,0.77825321,106850.0,106840.0,0.27388892]
[1750051669231,0.36972129,106850.0,106840.0,0.30668892]
[1750051669480,0.75579165,106850.0,106840.0,0.30668892]
[1750051669700,0.75579165,106850.0,106840.0,0.29028892]
[1750051670132,0.75579165,106850.0,106840.0,0.27388892]
[1750051670593,0.75179165,106850.0,106840.0,0.27388892]
[1750051671244,0.75279165,106850.0,106840.0,0.06976892]
[1750051671457,0.75279165,106850.0,106840.0,0.27148892]
[1750051672008,0.75279165,106850.0,106840.0,0.27112892]
[1750051672631,0.75279165,106850.0,106840.0,0.27068892]
[1750051674559,0.78549165,106850.0,106840.0,0.0522182]
[1750051674760,0.80797045,106850.0,106840.0,0.20054865]
[1750051674994,0.80797045,106850.0,106840.0,0.21809937]
[1750051675484,0.82554187,106850.0,106840.0,0.21813937]
[1750051675684,0.82554186,106850.0,106840.0,0.21813937]
[1750051675935,0.80797045,106850.0,106840.0,0.21813937]
[1750051676658,0.80597045,106850.0,106840.0,0.21813937]
[1750051677394,0.41990009,106850.0,106840.0,0.21813937]
[1750051677596,0.78349165,106850.0,106840.0,0.21813937]
[1750051677799,0.80597045,106850.0,106840.0,0.21813937]
[1750051678781,0.76574536,106850.0,106840.0,0.33619507]
[1750051678985,0.76574536,106850.0,106840.0,0.31438113]
[1750051681701,0.74326656,106850.0,106840.0,0.31438113]
[1750051682178,0.76574701,106850.0,106840.0,0.31438113]
[1750051682917,0.76574701,106850.0,106840.0,0.29683041]
[1750051683098,0.76574701,106850.0,106840.0,0.31438113]
[1750051683305,0.76574701,106850.0,106840.0,0.33028113]
[1750051683524,0.74326656,106850.0,106840.0,0.33028113]
[1750051683743,0.74326656,106850.0,106840.0,0.31438113]
[1750051684368,0.74326656,106850.0,106840.0,0.11426113]
[1750051684575,0.74326656,106850.0,106840.0,0.31190113]
[1750051684795,0.3571962,106850.0,106840.0,0.31190113]
[1750051685011,0.74326656,106850.0,106840.0,0.31190113]
[1750051685223,0.76574669,106850.0,106840.0,0.31190113]
[1750051686096,0.76574669,106850.0,106840.0,0.31166113]
[1750051687037,0.78114669,106850.0,106840.0,0.31166113]
[1750051687255,0.3725962,106850.0,106840.0,0.31166113]
[1750051687472,0.75866656,106850.0,106840.0,0.31166113]
[1750051687689,0.3725962,106850.0,106840.0,0.31166113]
[1750051687889,0.74326656,106850.0,106840.0,0.31166113]
[1750051689639,0.76574666,106850.0,106840.0,0.31166113]
[1750051690283,0.74326656,106850.0,106840.0,0.31166113]
[1750051690702,0.7983471,106850.0,106840.0,0.30986113]
[1750051691540,0.41227674,106850.0,106840.0,0.30986113]
[1750051691754,0.77586656,106850.0,106840.0,0.30986113]
[1750051691993,0.7983471,106850.0,106840.0,0.21325937]
[1750051692221,0.7983471,106850.0,106840.0,0.21317937]
[1750051692455,0.7983471,106850.0,106840.0,0.01801937]
[1750051692664,0.81591668,106850.0,106840.0,0.21317937]
[1750051693064,0.81591671,106850.0,106840.0,0.21317937]
[1750051693575,0.7983471,106850.0,106840.0,0.21313937]
[1750051693783,0.81591671,106850.0,106840.0,0.21313937]
[1750051693960,0.81591896,106850.0,106840.0,0.21313937]
[1750051694191,0.81591896,106850.0,106840.0,0.21285937]
[1750051694590,0.81591897,106850.0,106840.0,0.21285937]
[1750051694737,0.7983471,106850.0,106840.0,0.21285937]
[1750051694953,0.81591894,106850.0,106840.0,0.21285937]
[1750051695192,0.81591895,106850.0,106840.0,0.21285937]
[1750051695606,0.7983471,106850.0,106840.0,0.21285937]
[1750051695983,0.81591889,106850.0,106840.0,0.21285937]
[1750051696198,0.81592194,106850.0,106840.0,0.21269937]
[1750051697241,0.42985159,106850.0,106840.0,0.21161937]
[1750051697497,0.81592195,106850.0,106840.0,0.21161937]
[1750051697716,0.81592196,106850.0,106840.0,0.21161937]
[1750051697929,0.4298516,106850.0,106840.0,0.21161937]